bitfinex-derivatives/quotes_ETHF0:USTF0_20250904
["timestamp","ask_amount","ask_price","bid_price","bid_amount"]
[1756954137241,0.1928,4430.0,4429.9,2.13123375]
[1756954137433,0.7074,4430.0,4429.9,0.7039]
[1756954138032,0.8235,4430.0,4429.9,0.1905]
[1756954138233,0.8235,4430.0,4429.9,0.5013]
[1756954138833,0.7074,4430.0,4429.9,0.7039]
[1756954139529,0.7074,4430.0,4429.9,2.13123375]
[1756954139937,0.3971,4430.0,4429.9,2.13123375]
[1756954140137,0.3971,4430.0,4429.9,0.7039]
[1756954140330,0.7074,4430.0,4429.9,0.7039]
[1756954140541,1.50643234,4430.5,4430.3,0.3108]
[1756954140740,0.1928,4429.6,4429.5,0.5186]
[1756954141043,0.80087032,4429.6,4429.5,1.94593375]
[1756954141435,0.80087032,4429.6,4429.5,2.25673375]
[1756954142037,0.60807032,4429.6,4429.5,2.25673375]
[1756954142234,2.97356609,4430.5,4429.5,2.25673375]
[1756954142235,0.3103,4430.2,4429.5,1.94593375]
[1756954142435,0.7074,4430.2,4430.1,2.13123375]
[1756954142642,1.31493567,4430.2,4430.1,0.7039]
[1756954143043,1.31493567,4430.2,4429.8,1.42733375]
[1756954143245,0.3103,4430.0,4429.9,0.5013]
[1756954143540,1.31493567,4430.0,4429.9,0.5013]
[1756954144539,1.31493567,4430.0,4429.9,0.7039]
[1756954144838,1.31493567,4430.0,4428.5,0.1255]
[1756954145042,0.8235,4429.5,4429.4,0.1905]
[1756954145237,0.8235,4429.5,4429.2,0.3108]
[1756954145238,1.43103567,4429.5,4429.2,0.3108]
[1756954145431,0.7074,4429.1,4429.0,0.5013]
[1756954145641,1.31493567,4429.1,4429.0,0.5013]
[1756954146032,1.31493567,4429.1,4429.0,0.7039]
[1756954147231,1.31493567,4429.1,4428.5,0.1905]
[1756954147232,0.7074,4428.6,4428.5,0.1905]
[1756954147944,1.31421699,4428.6,4428.5,0.1905]
[1756954148644,1.31421699,4428.6,4428.5,0.8294]
[1756954148645,0.79961699,4428.6,4428.5,0.8294]
[1756954149443,0.5031,4428.6,4428.5,0.8294]
[1756954149649,0.5031,4428.6,4428.5,2.25673375]
[1756954149946,0.7074,4428.6,4428.5,2.25673375]
[1756954150548,0.1161,4428.5,4428.2,1.73813375]
[1756954150750,0.7074,4428.3,4427.6,0.3108]
[1756954151051,0.7074,4428.3,4428.2,0.5013]
[1756954151245,0.1161,4428.0,4427.9,1.42733375]
[1756954151446,0.5132,4428.0,4427.9,1.42733375]
[1756954151746,0.7074,4428.0,4427.9,2.13123375]
[1756954152148,0.7074,4428.0,4427.9,0.7039]
[1756954152548,0.8318,4428.0,4427.9,0.7039]
[1756954152749,0.8318,4428.0,4427.9,0.1905]
[1756954153150,0.4134,4427.8,4427.7,1.61853375]
[1756954153350,0.7142,4427.8,4427.7,1.92963375]
[1756954153550,0.7142,4427.8,4427.7,2.13893375]
[1756954154145,0.7142,4427.8,4427.7,0.7116]
[1756954154855,0.4134,4427.8,4427.7,0.7116]
[1756954155055,0.4134,4427.4,4427.3,0.7116]
[1756954155552,0.7142,4427.4,4427.3,0.7116]
[1756954156649,0.7142,4427.4,4426.5,32.6465]
[1756954156851,0.1244,4427.5,4426.0,0.8116]
[1756954156852,0.7142,4426.1,4426.0,0.8116]
[1756954157054,0.2038,4426.4,4426.3,0.4005]
[1756954157250,0.2038,4426.4,4426.3,2.13893375]
[1756954157555,0.2038,4426.7,4426.6,0.4005]
[1756954157749,0.7142,4427.2,4427.1,0.1912]
[1756954157949,1.31780235,4427.2,4427.1,0.7116]
[1756954158348,2.7451361,4427.2,4426.3,1.42733375]
[1756954158549,0.4134,4426.4,4426.3,2.13893375]
[1756954158744,0.2038,4426.4,4426.3,1.82783375]
[1756954158954,0.7142,4426.4,4426.3,0.4005]
[1756954159356,0.7142,4426.4,4426.3,0.7116]
[1756954159549,0.4134,4426.4,4426.0,0.4111]
[1756954159748,1.55173375,4426.5,4426.2,0.7116]
[1756954159749,0.7142,4426.3,4426.2,0.7116]
[1756954160562,0.2038,4426.3,4426.2,0.7116]
[1756954160759,1.72813375,4426.7,4426.6,0.4005]
[1756954160760,0.5046,4426.7,4426.6,0.4005]
[1756954160952,0.5046,4426.7,4426.6,0.7116]
[1756954161151,0.7142,4426.7,4426.2,1.42733375]
[1756954161353,1.42733375,4426.4,4426.1,0.5023]
[1756954161553,0.4134,4426.2,4426.1,0.7116]
[1756954162073,0.3008,4426.6,4426.2,0.3111]
[1756954162358,0.7142,4426.6,4426.5,0.7116]
[1756954163161,0.7142,4426.6,4426.5,0.831]
[1756954163748,0.3008,4427.0,4426.6,0.3111]
[1756954163954,1.84073375,4427.0,4426.9,0.7116]
[1756954164161,2.26593375,4427.0,4426.4,0.3111]
[1756954164356,2.14153375,4426.5,4426.4,0.5023]
[1756954164561,0.7142,4426.5,4426.4,0.7116]
[1756954164762,0.5046,4426.5,4426.4,0.7116]
[1756954164962,0.5046,4426.9,4426.6,0.3111]
[1756954165157,0.7142,4426.9,4426.8,0.5023]
[1756954165357,0.7142,4426.9,4426.4,0.3111]
[1756954165659,0.7142,4426.8,4426.7,0.1912]
[1756954165862,0.7142,4426.8,4426.7,0.7116]
[1756954166064,0.7142,4426.8,4426.7,0.1912]
[1756954166469,0.4134,4426.8,4426.1,0.3111]
[1756954166657,0.2038,4426.2,4426.1,0.7116]
[1756954166964,0.7142,4426.2,4426.1,0.7116]
[1756954167861,0.4134,4426.2,4426.1,0.7116]
[1756954168168,0.3008,4426.5,4426.1,0.7116]
[1756954168366,0.7142,4426.6,4426.2,0.3111]
[1756954168556,0.7142,4426.6,4426.5,0.7116]
[1756954169860,0.7142,4426.6,4426.5,0.3111]
[1756954170058,0.2038,4426.1,4426.0,0.6199]
[1756954170656,0.2038,4426.1,4426.0,0.931]
[1756954172968,0.234,4426.9,4426.0,0.6199]
[1756954173171,0.7142,4426.8,4426.7,0.1912]
[1756954173666,0.7142,4426.8,4426.5,0.3111]
[1756954174168,0.60267394,4426.7,4426.5,0.3111]
[1756954174366,0.7142,4426.8,4426.5,0.3111]
[1756954174567,0.60267394,4426.7,4426.5,0.3111]
[1756954174768,0.7142,4426.6,4426.5,0.5023]
[1756954175173,1.31722709,4426.6,4426.5,0.5023]
[1756954176559,0.60302709,4426.6,4426.5,2.25833375]
[1756954176771,0.5046,4427.4,4426.6,0.3111]
[1756954177075,1.31750254,4427.3,4427.2,0.7116]
[1756954177272,1.31750254,4427.3,4427.2,0.73150863]
[1756954179463,1.10790254,4427.3,4427.2,2.15884238]
[1756954179772,0.9482,4428.1,4428.0,0.1912]
[1756954179976,1.31976377,4428.1,4427.5,0.1194]
[1756954180172,0.7142,4427.7,4427.6,0.7116]
[1756954180371,1.31976377,4427.7,4427.6,0.73150863]
[1756954181070,0.80936377,4427.7,4427.6,0.73150863]
[1756954181275,0.60556377,4427.7,4427.6,0.73150863]
[1756954181469,0.2038,4427.9,4427.7,0.3111]
[1756954181673,0.1244,4428.5,4427.7,0.7116]
[1756954181674,0.60621498,4427.8,4427.7,0.7116]
[1756954181873,0.7142,4427.8,4427.7,0.7116]
[1756954182073,1.32056377,4427.8,4427.7,0.7116]
[1756954182376,1.32056377,4427.8,4427.7,0.73150863]
[1756954184474,0.81016377,4427.8,4427.7,2.15884238]
[1756954184678,1.10986377,4427.8,4427.7,2.15884238]
[1756954184976,1.31996377,4427.8,4427.7,2.15884238]
[1756954185680,0.81016377,4427.8,4427.7,2.15884238]
[1756954185976,0.60636377,4427.8,4427.7,2.15884238]
[1756954186176,0.2997,4428.4,4427.8,0.2969]
[1756954186375,1.32528227,4428.3,4428.2,0.4923]
[1756954186579,1.32528227,4428.3,4428.2,0.6951]
[1756954187378,1.32528227,4428.3,4428.2,0.71500863]
[1756954187980,1.02558227,4428.3,4428.2,0.71500863]
[1756954188167,1.32528227,4428.3,4428.2,0.71500863]
[1756954188983,0.81548227,4428.3,4428.2,0.71500863]
[1756954189282,0.7188,4428.3,4428.2,0.21530863]
[1756954189880,0.7188,4428.3,4428.2,0.51220863]
[1756954190774,1.32447609,4428.3,4428.2,0.51220863]
[1756954191087,1.32447609,4428.3,4428.2,0.71500863]
[1756954192096,0.7188,4428.3,4428.2,0.71500863]
[1756954194486,0.7188,4428.3,4428.2,0.21530863]
[1756954194887,0.7188,4428.3,4428.2,0.51220863]
[1756954195587,0.7188,4428.3,4428.2,0.71500863]
[1756954196881,0.234,4428.8,4428.7,0.3982]
[1756954196882,0.9528,4428.8,4428.7,0.3982]
[1756954197083,1.55821077,4428.8,4428.7,0.6951]
[1756954197387,1.55821077,4428.8,4428.7,0.01990863]
[1756954198288,1.55821077,4428.8,4428.7,0.21530863]
[1756954198589,1.55821077,4428.8,4428.7,0.51220863]
[1756954199683,1.32421077,4428.8,4428.7,0.51220863]
[1756954199882,1.55821077,4428.8,4428.7,0.51220863]
[1756954200487,1.32421077,4428.8,4428.7,0.71500863]
[1756954200785,0.1244,4429.5,4428.8,0.2969]
[1756954200990,0.7188,4428.9,4428.8,0.6951]
[1756954201583,0.7188,4428.9,4428.8,0.71500863]
[1756954202592,0.209,4428.9,4428.8,0.71500863]
[1756954203495,0.5087,4428.9,4428.8,0.71500863]
[1756954205089,1.11527888,4428.9,4428.8,0.71500863]
[1756954205996,1.32537888,4428.9,4428.8,0.71500863]
[1756954206385,6.95357087,4428.9,4428.8,0.01990863]
[1756954206591,6.95357087,4428.9,4427.0,0.1194]
[1756954206592,8.37549321,4428.9,4427.7,0.5309]
[1756954206791,0.5087,4427.8,4427.7,0.9291]
[1756954207290,0.7188,4427.8,4427.7,0.9291]
[1756954207490,1.3259226,4427.8,4427.7,0.6951]
[1756954207697,1.3259226,4427.8,4427.7,0.4923]
[1756954207996,1.3259226,4427.8,4427.7,0.1954]
[1756954209592,1.3259226,4427.8,4427.0,0.1194]
[1756954209593,0.4191,4427.1,4427.0,0.8145]
[1756954209896,0.7188,4427.1,4427.0,0.6951]
[1756954210890,1.02814793,4427.1,4426.7,0.2969]
[1756954211094,0.1173,4427.5,4426.7,0.1954]
[1756954211095,0.7188,4426.8,4426.7,0.1954]
[1756954211288,0.7188,4426.8,4426.3,1.62819199]
[1756954211289,0.2997,4426.7,4426.3,1.62819199]
[1756954211503,0.7188,4426.7,4426.6,0.6951]
[1756954211693,1.02788584,4426.7,4426.6,0.6951]
[1756954212299,1.33328584,4426.7,4426.6,0.6951]
[1756954216702,0.3513,4427.5,4426.6,0.6951]
[1756954217009,1.31796295,4427.4,4426.9,1.62819199]
[1756954217209,0.71,4427.0,4426.9,2.31289199]
[1756954217405,1.31796295,4427.0,4426.9,2.31289199]
[1756954218506,1.31796295,4427.0,4426.9,0.6847]
[1756954218709,1.31796295,4427.0,4426.9,2.31289199]
[1756954219613,0.60796295,4427.0,4426.9,2.31289199]
[1756954220004,0.5137,4427.5,4427.4,0.3982]
[1756954220200,1.12135094,4427.5,4427.4,2.31289199]
[1756954220906,0.5137,4427.5,4427.4,2.31289199]
[1756954221514,0.8236,4427.5,4426.6,0.2865]
[1756954221699,0.4046,4427.0,4426.9,1.82499199]
[1756954221900,0.71,4427.0,4426.9,2.31289199]
[1756954222212,0.8236,4427.0,4426.9,1.62819199]
[1756954222408,1.43135448,4427.0,4426.4,1.62819199]
[1756954222610,0.1136,4427.0,4426.4,1.62819199]
[1756954222813,0.71,4426.5,4426.4,2.31289199]
[1756954224811,0.8236,4426.5,4426.4,1.82499199]
[1756954225009,0.8236,4426.5,4426.4,0.1968]
[1756954225204,0.8236,4426.5,4426.4,0.4833]
[1756954228816,0.71,4426.5,4426.4,0.6847]
[1756954230812,0.5182,4426.5,4426.0,0.1]
[1756954231017,0.419,4426.0,4425.3,1.62819199]
[1756954231209,0.2083,4426.0,4425.9,0.6847]
[1756954231410,0.1136,4427.0,4426.1,0.2865]
[1756954231609,0.71,4426.7,4426.6,2.31289199]
[1756954231815,0.3054,4427.8,4427.1,0.2865]
[1756954232011,34.12972256,4428.6,4427.1,0.2865]
[1756954232012,0.3054,4427.5,4427.3,1.62819199]
[1756954232216,0.5137,4427.5,4427.4,0.6847]
[1756954232413,0.71,4427.5,4427.4,0.2865]
[1756954232612,1.43103406,4427.5,4427.0,0.1154]
[1756954232810,0.5182,4427.5,4427.1,0.2865]
[1756954233013,0.3054,4427.4,4427.3,0.4833]
[1756954233214,0.71,4427.4,4427.3,0.4833]
[1756954233418,1.31769314,4427.4,4427.3,0.4833]
[1756954233623,0.71,4427.4,4427.3,0.4833]
[1756954234115,0.71,4427.4,4427.3,0.6847]
[1756954234323,0.81631181,4427.4,4427.3,2.31289199]
[1756954234614,0.3054,4427.8,4427.3,2.02639199]
[1756954234815,0.2083,4427.8,4427.7,0.6847]
[1756954235014,0.71,4427.8,4427.7,0.6847]
[1756954235215,1.31804524,4427.8,4427.7,0.6847]
[1756954235616,1.01264524,4427.8,4427.7,0.6847]
[1756954237410,1.31804524,4427.8,4427.7,0.6847]
[1756954237615,1.01264524,4427.8,4427.7,0.1968]
[1756954237822,1.01264524,4427.8,4427.7,0.4833]
[1756954238321,1.31804524,4427.8,4427.7,0.6847]
[1756954238920,1.31804524,4427.8,4427.7,0.1968]
[1756954239118,0.71,4427.2,4427.1,0.1968]
[1756954239319,0.1136,4427.0,4426.6,1.62819199]
[1756954239629,0.71,4426.7,4426.6,0.6847]
[1756954240424,0.3054,4427.4,4426.7,0.2865]
[1756954240620,1.01423176,4427.3,4427.2,0.2014]
[1756954240816,1.31963176,4427.3,4427.2,0.6847]
[1756954241418,1.31963176,4427.3,4426.9,1.91469199]
[1756954241619,0.4046,4427.1,4427.0,0.4833]
[1756954241926,1.31963176,4427.1,4427.0,0.4833]
[1756954242127,1.31963176,4427.1,4427.0,0.6847]
[1756954242722,1.01423176,4427.1,4427.0,0.6847]
[1756954243030,1.01423176,4427.1,4427.0,0.8051]
[1756954243328,1.30103176,4427.1,4427.0,2.43329199]
[1756954243629,1.30103176,4427.1,4427.0,2.31289199]
[1756954243832,0.6914,4427.1,4427.0,0.6847]
[1756954244031,1.30100136,4427.1,4427.0,0.6847]
[1756954244530,1.30100136,4427.1,4427.0,0.8051]
[1756954244725,1.01420136,4427.1,4427.0,0.8051]
[1756954244931,0.81790136,4427.1,4427.0,0.8051]
[1756954245823,0.60960136,4427.1,4427.0,0.8051]
[1756954246425,0.60960136,4427.1,4427.0,1.0381]
[1756954247528,0.80800136,4427.1,4427.0,1.0381]
[1756954248829,0.60960136,4427.1,4427.0,1.0381]
[1756954249231,1.28490136,4427.1,4427.0,1.0381]
[1756954249827,0.80800136,4427.1,4427.0,1.0381]
[1756954250336,0.60960136,4427.1,4427.0,1.0381]
[1756954250731,0.1984,4427.8,4427.7,0.4031]
[1756954250929,0.2868,4428.1,4427.7,0.7035]
[1756954251127,0.4769,4427.9,4427.8,0.7035]
[1756954251330,0.60956686,4427.9,4427.8,2.33169199]
[1756954251530,0.4852,4428.3,4428.2,0.7035]
[1756954251823,0.4852,4428.3,4428.2,2.33169199]
[1756954251824,0.60981163,4428.3,4428.2,2.33169199]
[1756954252143,0.60981163,4428.3,4428.2,0.7035]
[1756954252144,0.3885,4428.3,4428.2,0.7035]
[1756954252331,0.99831163,4428.3,4428.2,0.7035]
[1756954252529,0.80821163,4428.3,4428.2,0.7035]
[1756954252729,0.60981163,4428.3,4428.2,0.9365]
[1756954253531,0.4852,4429.0,4428.9,0.2093]
[1756954253835,1.28474583,4429.0,4428.9,0.5097]
[1756954254030,1.28474583,4429.0,4428.2,0.233]
[1756954254031,0.2868,4428.9,4428.2,0.5334]
[1756954254231,0.3885,4428.3,4428.2,0.9365]
[1756954254832,0.6753,4428.3,4428.2,0.9365]
[1756954255034,1.28438075,4428.3,4428.2,0.9365]
[1756954255726,1.28438075,4428.3,4428.2,0.7035]
[1756954256440,1.19613234,4429.3,4429.0,0.8239]
[1756954256732,0.6753,4429.7,4429.6,0.2093]
[1756954257128,0.6753,4429.7,4429.6,0.5097]
[1756954257333,0.6753,4429.7,4429.6,0.7035]
[1756954257539,0.6753,4429.7,4429.6,1.63665378]
[1756954257733,0.6753,4429.7,4429.6,1.93705378]
[1756954258141,0.6753,4429.7,4429.6,2.13085378]
[1756954259643,0.3885,4429.7,4429.6,2.13085378]
[1756954259839,0.1984,4429.7,4429.6,2.13085378]
[1756954260636,0.2868,4430.0,4429.7,0.3004]
[1756954260836,0.3885,4430.0,4429.9,2.13085378]
[1756954261033,0.6753,4430.0,4429.9,0.7035]
[1756954261235,0.6753,4430.0,4429.6,0.128]
[1756954261236,0.2868,4429.9,4429.6,0.128]
[1756954261430,0.6753,4429.3,4429.2,0.6057]
[1756954261636,0.6753,4429.3,4429.2,2.13085378]
[1756954261836,0.6753,4429.3,4429.2,1.83045378]
[1756954262240,0.6753,4429.3,4429.2,2.13085378]
[1756954264036,0.3885,4429.3,4429.2,2.13085378]
[1756954264242,0.1984,4429.3,4429.2,2.13085378]
[1756954265342,0.1222,4430.0,4429.3,0.3004]
[1756954265546,0.1984,4429.4,4429.3,0.7035]
[1756954265738,0.2868,4429.9,4429.3,1.83045378]
[1756954265944,0.6753,4429.9,4429.8,2.13085378]
[1756954268445,1.2799648,4429.9,4429.8,2.13085378]
[1756954270444,1.2799648,4429.9,4429.0,0.1204]
[1756954270641,0.1984,4428.6,4428.5,0.5235]
[1756954270842,0.1984,4428.6,4428.5,2.02985378]
[1756954271046,0.2868,4428.8,4428.5,2.02985378]
[1756954271245,1.19613234,4430.2,4429.9,0.7035]
[1756954271246,0.1984,4430.0,4429.9,0.7035]
[1756954271446,0.6753,4430.0,4429.9,1.83045378]
[1756954271651,0.7975,4430.0,4429.9,1.42735378]
[1756954272137,0.7975,4430.0,4429.9,1.92485378]
[1756954272339,1.4008368,4430.0,4429.9,1.62735378]
[1756954272742,1.4008368,4430.0,4429.1,0.195]
[1756954272743,41.17365314,4430.0,4428.2,1.42735378]
[1756954272948,0.7178,4429.3,4429.2,1.83555378]
[1756954273148,1.3211368,4429.3,4429.2,1.83555378]
[1756954274046,1.3211368,4429.3,4429.2,2.13305378]
[1756954274449,0.6033368,4429.3,4428.9,1.72485378]
[1756954274750,0.404,4428.8,4428.7,0.4975]
[1756954274950,0.7178,4428.8,4428.7,0.4975]
[1756954275149,1.32144775,4428.8,4428.7,0.4975]
[1756954275348,1.32158921,4428.8,4428.7,0.7057]
[1756954275547,0.7178,4428.8,4428.7,0.7057]
[1756954275748,0.404,4428.8,4428.7,0.7057]
[1756954276141,0.7178,4428.8,4428.7,0.7057]
[1756954276341,1.32167133,4428.8,4428.2,0.2975]
[1756954276552,0.7178,4428.3,4428.2,0.4975]
[1756954276852,1.32167133,4428.3,4428.2,0.4975]
[1756954277750,1.32167133,4428.3,4427.7,0.2975]
[1756954278050,0.1243,4428.5,4427.7,0.7057]
[1756954278051,0.7178,4427.8,4427.7,0.7057]
[1756954278548,0.7178,4427.8,4427.7,0.2]
[1756954278748,1.32175441,4427.8,4427.7,0.2]
[1756954279845,1.32175441,4427.8,4427.7,0.4975]
[1756954280245,0.7178,4427.7,4427.6,1.42735378]
[1756954280439,0.7178,4427.7,4427.3,0.2975]
[1756954280440,0.3138,4427.6,4427.3,0.2975]
[1756954280650,1.42735378,4427.8,4427.0,1.83555378]
[1756954280651,0.7178,4427.1,4427.0,1.83555378]
[1756954281048,0.7178,4427.1,4427.0,2.13305378]
[1756954283948,0.7178,4427.1,4427.0,2.25225378]
[1756954284149,0.404,4427.1,4427.0,2.25225378]
[1756954284652,0.7178,4427.1,4427.0,2.13305378]
[1756954285256,0.126,4427.7,4427.0,1.95475378]
[1756954285553,1.32062232,4427.6,4427.5,0.4975]
[1756954285849,1.32062232,4427.6,4427.5,0.7057]
[1756954287149,0.7178,4427.6,4427.5,0.7057]
[1756954287750,0.7178,4427.6,4427.1,0.2975]
[1756954287959,0.404,4427.6,4427.5,0.2]
[1756954288149,0.404,4427.6,4427.5,0.4975]
[1756954288550,0.7178,4427.6,4427.5,0.4975]
[1756954289056,0.7178,4427.6,4427.5,0.7057]
[1756954290055,0.2058,4427.6,4427.5,0.8249]
[1756954290356,0.7178,4427.6,4427.5,0.2]
[1756954290558,0.7178,4427.6,4427.3,1.42735378]
[1756954290559,0.7178,4427.4,4427.3,1.42735378]
[1756954290946,0.3138,4427.3,4427.1,0.2975]
[1756954291149,0.2058,4427.2,4427.1,0.2975]
[1756954291356,0.7178,4427.2,4425.4,32.523]
[1756954291656,0.512,4426.2,4426.1,0.7057]
[1756954291853,0.7178,4426.2,4426.1,2.13305378]
[1756954293855,0.3138,4426.9,4426.1,1.83555378]
[1756954294063,0.2058,4426.7,4426.6,2.13305378]
[1756954295161,0.5196,4427.1,4427.0,0.7057]
[1756954295362,0.5196,4427.1,4427.0,0.8249]
[1756954295660,0.7178,4427.1,4427.0,0.7057]
[1756954296561,0.7178,4427.1,4426.5,0.1192]
[1756954296562,0.1243,4427.0,4425.4,32.756]
[1756954296869,0.7178,4426.2,4426.1,2.13305378]
[1756954297166,0.7178,4426.2,4426.1,0.7057]
[1756954297364,0.7178,4426.2,4426.1,2.13305378]
[1756954297659,0.404,4426.3,4426.2,0.7057]
[1756954297965,0.7178,4426.3,4426.2,0.4975]
[1756954298160,0.7178,4426.2,4426.1,0.2]
[1756954298364,0.7178,4426.2,4425.8,0.2975]
[1756954298563,0.7178,4426.2,4426.1,0.7057]
[1756954298564,0.71667021,4426.2,4426.1,0.7057]
[1756954299369,0.71667021,4426.2,4426.1,0.2]
[1756954299567,0.71667021,4426.2,4426.1,0.7057]
[1756954299862,0.3138,4426.9,4426.1,0.2975]
[1756954300164,0.9028,4426.6,4426.5,0.2]
[1756954300360,0.2058,4425.9,4425.8,2.13305378]
[1756954300763,0.5196,4425.9,4425.8,2.13305378]
[1756954300962,0.3138,4426.2,4425.8,1.83555378]
[1756954301163,0.3138,4426.9,4426.2,0.2975]
[1756954301359,1.04104894,4426.8,4426.7,0.4082]
[1756954301557,1.55304894,4426.8,4426.7,0.7057]
[1756954301759,1.32004894,4426.8,4426.7,0.7057]
[1756954301956,0.60224894,4426.8,4426.7,2.13305378]
[1756954304661,0.60224894,4426.8,4426.7,0.7057]
[1756954306067,1.31794894,4426.8,4426.7,0.2]
[1756954306663,1.31794894,4426.8,4426.7,0.508]
[1756954306960,0.60224894,4426.8,4426.7,0.6973]
[1756954308064,1.31794894,4426.8,4426.7,0.6973]
[1756954308260,1.31794894,4426.8,4426.3,0.308]
[1756954308462,0.4136,4426.4,4426.3,0.687]
[1756954308664,0.6046586,4426.6,4426.3,0.687]
[1756954308866,0.8141586,4426.6,4426.5,0.5011]
[1756954309072,0.8141586,4426.6,4426.5,0.8091]
[1756954310366,0.8141586,4426.6,4426.5,2.23645378]
[1756954311968,0.8141586,4426.6,4426.5,0.8091]
[1756954312159,1.1162586,4426.6,4426.5,0.8091]
[1756954312559,1.3203586,4426.6,4426.5,0.8091]
[1756954313273,1.0182586,4426.6,4426.5,0.8091]
[1756954313664,1.3203586,4426.6,4426.5,0.687]
[1756954313860,1.3203586,4426.6,4426.5,0.8091]
[1756954315374,0.8141586,4426.6,4426.5,0.8091]
[1756954315576,0.6046586,4426.6,4426.5,0.8091]
[1756954315871,1.19199635,4426.8,4426.5,0.8091]
[1756954315872,0.2095,4426.7,4426.6,0.687]
[1756954316074,0.81439593,4426.7,4426.6,0.687]
[1756954316674,1.32059593,4426.7,4426.6,0.687]
[1756954317476,0.4136,4426.5,4426.4,1.61705378]
[1756954317677,1.32059593,4426.5,4426.4,1.92505378]
[1756954318077,1.32059593,4426.5,4426.4,0.4977]
[1756954318277,1.44259593,4426.5,4426.4,0.1897]
[1756954318977,1.32059593,4426.5,4426.4,0.687]
[1756954321476,1.44259593,4426.5,4426.0,0.1192]
[1756954321674,1.19199635,4426.3,4425.5,2.12779738]
[1756954321980,1.34949593,4426.2,4426.1,0.687]
[1756954322277,0.81439593,4426.2,4426.1,0.687]
[1756954322480,0.60489593,4426.2,4426.1,0.687]
[1756954323280,0.2095,4426.3,4426.2,0.308]
[1756954323478,0.2095,4426.3,4426.2,0.687]
[1756954323681,0.81463337,4426.3,4426.2,0.687]
[1756954324381,0.60513337,4426.3,4426.2,2.31659738]
[1756954324577,0.4425,4426.6,4426.5,0.5011]
[1756954324782,1.04752321,4426.6,4426.5,0.8091]
[1756954325081,1.34962321,4426.6,4426.5,0.8091]
[1756954325475,1.11662321,4426.6,4426.5,0.8091]
[1756954325677,1.32072321,4426.6,4426.5,0.8091]
[1756954325981,1.32072321,4426.6,4426.5,0.687]
[1756954327784,1.32072321,4426.6,4426.2,1.93759738]
[1756954327990,0.7157,4426.3,4426.2,0.4977]
[1756954328188,1.32072321,4426.3,4426.2,0.4977]
[1756954328481,1.32072321,4426.3,4426.2,0.687]
[1756954328688,1.32072321,4426.3,4425.6,0.308]
[1756954328877,1.01862321,4426.2,4426.1,0.1897]
[1756954329079,1.01862321,4426.2,4426.1,0.4977]
[1756954329080,1.32072321,4426.2,4426.1,0.4977]
[1756954329277,1.32072321,4426.2,4426.1,0.687]
[1756954331191,1.01862321,4426.2,4426.1,0.687]
[1756954331394,1.32072321,4426.2,4426.1,0.687]
[1756954331889,0.81452321,4426.2,4426.1,0.687]
[1756954332487,0.60502321,4426.2,4426.1,2.31659738]
[1756954332690,0.60574586,4426.7,4426.2,0.2883]
[1756954332890,0.233,4427.0,4426.8,0.4122]
[1756954333192,1.30690771,4426.9,4426.8,0.7005]
[1756954334485,1.00290771,4426.9,4426.3,1.62959738]
[1756954334696,1.42499635,4427.1,4426.2,0.7005]
[1756954334697,0.7011,4426.3,4426.2,0.7005]
[1756954334899,1.30690771,4426.3,4426.2,0.7005]
[1756954337796,1.00290771,4426.3,4426.2,0.7005]
[1756954338001,0.60580771,4426.3,4426.2,0.7005]
[1756954339904,0.79680771,4426.3,4426.2,0.7005]
[1756954340496,0.60580771,4426.3,4426.2,0.7005]
[1756954342599,0.79680771,4426.3,4426.2,0.7005]
[1756954342904,0.79680771,4426.3,4426.2,2.33009738]
[1756954343105,1.10080771,4426.3,4426.2,2.33009738]
[1756954343598,0.79680771,4426.3,4426.2,2.33009738]
[1756954344206,0.60580771,4426.3,4426.2,2.33009738]
[1756954345405,1.30690771,4426.3,4426.2,2.33009738]
[1756954345807,1.30690771,4426.3,4426.2,1.83209738]
[1756954346308,1.30690771,4426.3,4426.2,2.12039738]
[1756954346510,0.60580771,4426.3,4426.2,2.33009738]
[1756954347606,0.79680771,4426.3,4426.2,2.33009738]
[1756954347999,1.30690771,4426.3,4426.2,1.83209738]
[1756954348204,1.30690771,4426.3,4426.2,0.2025]
[1756954349209,1.30690771,4426.3,4426.1,0.233]
[1756954349405,1.30690771,4426.2,4426.1,0.4908]
[1756954349701,1.30690771,4426.2,4426.1,0.7005]
[1756954351898,0.60580771,4426.2,4426.1,0.7005]
[1756954352103,0.79680771,4426.2,4426.1,0.7005]
[1756954352302,1.10080771,4426.2,4426.1,0.7005]
[1756954352503,0.60580771,4426.2,4426.1,0.7005]
[1756954352910,0.79680771,4426.2,4426.1,0.7005]
[1756954353509,1.10080771,4426.2,4426.1,0.7005]
[1756954353915,1.30690771,4426.2,4426.1,0.7005]
[1756954355313,0.60580771,4426.2,4426.1,0.9335]
[1756954355714,1.30690771,4426.2,4426.1,0.9335]
[1756954357719,1.30690771,4426.2,4426.1,0.233]
[1756954357921,1.30690771,4426.2,4425.9,0.233]
[1756954358107,0.7011,4426.0,4425.9,0.7238]
[1756954358307,1.30690771,4426.0,4425.9,0.7238]
[1756954358515,1.42610771,4426.0,4425.9,0.7238]
[1756954358713,1.30690771,4426.0,4425.9,0.9335]
[1756954358910,0.3971,4425.7,4425.6,0.233]
[1756954359109,0.7011,4425.7,4425.6,0.4355]
[1756954359309,1.30690771,4425.7,4425.6,0.7238]
[1756954359714,1.30690771,4425.7,4425.6,0.4908]
[1756954359909,0.5163,4425.5,4425.4,0.233]
[1756954360105,0.8203,4425.5,4425.4,0.233]
[1756954360316,1.12210771,4425.5,4424.9,1.62959738]
[1756954360513,0.7011,4425.0,4424.9,2.06509738]
[1756954360717,1.30690771,4425.0,4424.9,2.06509738]
[1756954361017,0.7011,4425.0,4424.9,2.35339738]
[1756954361608,0.7011,4425.0,4424.9,2.56309738]
[1756954362012,0.6855,4425.4,4425.3,0.3925]
[1756954362218,1.29136609,4425.4,4425.3,2.31879738]
[1756954363518,0.60586609,4425.4,4425.3,2.31879738]
[1756954363909,0.305,4426.2,4425.7,0.6892]